fUSD/lending_fUSD_20240118
["ID","MTS","AMOUNT","RATE_DAILY","PERIOD"]
[312043378,1705571447771,-3034.53,0.00022191,2]
[312043379,1705571447781,-500.0,0.00022191,2]
[312043380,1705571447794,-500.0,0.00022191,2]
[312043381,1705571447804,-500.0,0.00022191,2]
[312043382,1705571447814,-500.0,0.00022191,2]
[312043383,1705571447824,-500.0,0.00022191,2]
[312043384,1705571447835,-1940.27,0.00022191,2]
[312043385,1705571447845,-5373.36,0.00022191,2]
[312043386,1705571447855,-500.0,0.00022191,2]
[312043387,1705571447865,-500.0,0.00022191,2]
[312043388,1705571447877,-605.81,0.00022191,2]
[312043389,1705571447888,-1409.77,0.00022191,2]
[312043390,1705571447898,-1230.82,0.00022191,2]
[312043391,1705571447908,-504.07115527,0.00022191,2]
[312043392,1705571447923,-500.0,0.00022191,2]
[312043393,1705571447933,-1855.69,0.00022191,2]
[312043394,1705571447943,-342.68,0.00022191,2]
[312043395,1705571447953,-2206.15,0.00022191,2]
[312043396,1705571447964,-1153.6,0.00022191,2]
[312043397,1705571447974,-772.18,0.00022191,2]
[312043398,1705571447984,-500.0,0.00022191,2]
[312043399,1705571447994,-1253.94,0.00022191,2]
[312043400,1705571448007,-500.0,0.00022191,2]
[312043401,1705571448027,-500.0,0.00022191,2]
[312043402,1705571448041,-690.04,0.00022191,2]
[312043403,1705571448052,-1352.59,0.00022191,2]
[312043404,1705571448062,-500.0,0.00022191,2]
[312043405,1705571448073,-289.23716391,0.00022191,2]
[312043406,1705571448083,-500.0,0.00022191,2]
[312043407,1705571448093,-500.0,0.00022191,2]
[312043408,1705571448104,-500.0,0.00022191,2]
[312043409,1705571448114,-633.46,0.00022191,2]
[312043410,1705571448125,-554.74,0.00022191,2]
[312043411,1705571448136,-500.0,0.00022191,2]
[312043412,1705571448147,-1363.54,0.00022191,2]
[312043413,1705571448159,-506.47473039,0.00022191,2]
[312043414,1705571448170,-500.0,0.00022191,2]
[312043415,1705571448180,-500.0,0.00022191,2]
[312043416,1705571448192,-500.0,0.00022191,2]
[312043417,1705571448203,-500.0,0.00022191,2]
[312043418,1705571448214,-500.0,0.00022191,2]
[312043419,1705571448226,-500.0,0.00022191,2]
[312043420,1705571448237,-986.72,0.00022191,2]
[312043421,1705571448249,-500.0,0.00022191,2]
[312043422,1705571448259,-1632.95,0.00022191,2]
[312043423,1705571448269,-500.0,0.00022191,2]
[312043424,1705571448279,-645.55,0.00022191,2]
[312043425,1705571448289,-500.0,0.00022191,2]
[312043426,1705571448299,-500.0,0.00022191,2]
[312043427,1705571448310,-500.0,0.00022191,2]
[312043428,1705571448320,-500.0,0.00022191,2]
[312043429,1705571448330,-2889.47,0.00022191,2]
[312043430,1705571448339,-500.0,0.00022191,2]
[312043431,1705571448349,-500.0,0.00022191,2]
[312043432,1705571448359,-500.0,0.00022191,2]
[312043433,1705571448369,-500.0,0.00022191,2]
[312043434,1705571448380,-2392.4,0.00022191,2]
[312043435,1705571448390,-11264.2,0.00022191,2]
[312043436,1705571448400,-500.0,0.00022191,2]
[312043437,1705571448410,-500.0,0.00022191,2]
[312043438,1705571448420,-500.0,0.00022191,2]
[312043439,1705571448434,-500.0,0.00022191,2]
[312043440,1705571448444,-500.0,0.00022191,2]
[312043441,1705571448454,-500.0,0.00022191,2]
[312043442,1705571448466,-500.0,0.00022191,2]
[312043443,1705571448476,-867.84,0.00022191,2]
[312043444,1705571448486,-500.0,0.00022191,2]
[312043445,1705571448495,-514.65270892,0.00022191,2]
[312043446,1705571448506,-500.0,0.00022191,2]
[312043447,1705571448517,-1347.97,0.00022191,2]
[312043448,1705571448529,-500.0,0.00022191,2]
[312043449,1705571448539,-500.0,0.00022191,2]
[312043450,1705571448550,-3911.76,0.00022191,2]
[312043451,1705571448561,-1251.1,0.00022191,2]
[312043452,1705571448572,-500.0,0.00022191,2]
[312043453,1705571448583,-783.6,0.00022191,2]
[312043454,1705571448592,-474.56,0.00022191,2]
[312043455,1705571448602,-500.0,0.00022191,2]
[312043456,1705571448614,-500.0,0.00022191,2]
[312043457,1705571448624,-617.3,0.00022191,2]
[312043458,1705571448635,-334.97,0.00022191,2]
[312043459,1705571448646,-286.25110628,0.00022191,2]
[312043460,1705571448656,-500.0,0.00022191,2]
[312043461,1705571448666,-1127.21,0.00022191,2]
[312043462,1705571448676,-998.2,0.00022191,2]
[312043463,1705571448687,-500.0,0.00022191,2]
[312043464,1705571448697,-500.0,0.00022191,2]
[312043465,1705571448707,-500.0,0.00022191,2]
[312043466,1705571448719,-663.53,0.00022191,2]
[312043467,1705571448729,-1727.98,0.00022191,2]
[312043468,1705571448739,-500.0,0.00022191,2]
[312043469,1705571448749,-614.04,0.00022191,2]
[312043470,1705571448763,-606.99,0.00022191,2]
[312043471,1705571448774,-500.0,0.00022191,2]
[312043472,1705571448784,-500.0,0.00022191,2]
[312043473,1705571448796,-725.67,0.00022191,2]
[312043474,1705571448806,-500.0,0.00022191,2]
[312043475,1705571448816,-3736.39,0.00022191,2]
[312043476,1705571448827,-380.8,0.00022191,2]
[312043477,1705571448839,-500.0,0.00022191,2]
[312043478,1705571448849,-500.0,0.00022191,2]
[312043479,1705571448860,-513.82,0.00022191,2]
[312043480,1705571448870,-500.0,0.00022191,2]
[312043481,1705571448881,-823.05,0.00022191,2]
[312043482,1705571448893,-500.0,0.00022191,2]
[312043483,1705571448903,-600.47,0.00022191,2]
[312043484,1705571448914,-770.03,0.00022191,2]
[312043485,1705571448924,-500.0,0.00022191,2]
[312043486,1705571448935,-500.0,0.00022191,2]
[312043487,1705571448945,-500.0,0.00022191,2]
[312043488,1705571448956,-500.0,0.00022191,2]
[312043489,1705571448967,-592.91,0.00022191,2]
[312043490,1705571448977,-500.0,0.00022191,2]
[312043491,1705571448987,-500.0,0.00022191,2]
[312043492,1705571448998,-500.0,0.00022191,2]
[312043493,1705571449009,-530.94,0.00022191,2]
[312043494,1705571449020,-7068.0,0.00022191,2]
[312043495,1705571449030,-500.0,0.00022191,2]
[312043496,1705571449039,-500.0,0.00022191,2]
[312043497,1705571449049,-500.0,0.00022191,2]
[312043498,1705571449061,-471.18644166,0.00022191,2]
[312043499,1705571449072,-1459.78,0.00022191,2]
[312043500,1705571449083,-500.0,0.00022191,2]
[312043501,1705571449093,-1142.85,0.00022191,2]
[312043502,1705571449103,-492.43217064,0.00022191,2]
[312043503,1705571449116,-1232.3,0.00022191,2]
[312043504,1705571449127,-1005.06,0.00022191,2]
[312043505,1705571449139,-500.0,0.00022191,2]
[312043506,1705571449151,-500.0,0.00022191,2]
[312043507,1705571449162,-500.0,0.00022191,2]
[312043508,1705571449174,-1537.39,0.00022191,2]
[312043509,1705571449185,-500.0,0.00022191,2]
[312043510,1705571449195,-500.0,0.00022191,2]
[312043511,1705571449205,-672.01,0.00022191,2]
[312043512,1705571449216,-500.0,0.00022191,2]
[312043513,1705571449227,-521.43517965,0.00022191,2]
[312043514,1705571449238,-500.0,0.00022191,2]
[312043515,1705571449248,-1946.39,0.00022191,2]
[312043516,1705571449259,-327.7,0.00022191,2]
[312043517,1705571449269,-617.09,0.00022191,2]
[312043518,1705571449279,-607.99,0.00022191,2]
[312043519,1705571449289,-500.0,0.00022191,2]
[312043520,1705571449299,-500.0,0.00022191,2]
[312043521,1705571449309,-2424.07,0.00022191,2]
[312043522,1705571449319,-500.0,0.00022191,2]
[312043523,1705571449329,-683.24,0.00022191,2]
[312043524,1705571449338,-535.43,0.00022191,2]
[312043525,1705571449349,-755.21,0.00022191,2]
[312043526,1705571449358,-967.22,0.00022191,2]
[312043527,1705571449369,-234.44045363,0.00022191,2]
[312043528,1705571449379,-500.0,0.00022191,2]
[312043529,1705571449389,-691.03,0.00022191,2]
[312043530,1705571449400,-510.55,0.00022191,2]
[312043531,1705571449414,-895.3,0.00022191,2]
[312043532,1705571449431,-516.03311958,0.00022191,2]
[312043533,1705571449442,-511.27,0.00022191,2]
[312043534,1705571449453,-500.0,0.00022191,2]
[312043535,1705571449464,-500.0,0.00022191,2]
[312043536,1705571449475,-1073.98,0.00022191,2]
[312043537,1705571449485,-500.0,0.00022191,2]
[312043538,1705571449496,-500.0,0.00022191,2]
[312043539,1705571449509,-500.0,0.00022191,2]
[312043540,1705571449520,-500.0,0.00022191,2]
[312043541,1705571449531,-154.39765918,0.00022191,2]
[312043542,1705571449542,-875.18,0.00022191,2]
[312043543,1705571449552,-500.0,0.00022191,2]
[312043544,1705571449563,-2399.21,0.00022191,2]
[312043545,1705571449574,-1552.36,0.00022191,2]
[312043546,1705571449585,-789.53,0.00022191,2]
[312043547,1705571449597,-500.0,0.00022191,2]
[312043548,1705571449608,-500.0,0.00022191,2]
[312043549,1705571449619,-500.0,0.00022191,2]
[312043550,1705571449630,-500.0,0.00022191,2]
[312043551,1705571449642,-500.0,0.00022191,2]
[312043552,1705571449653,-500.0,0.00022191,2]
[312043553,1705571449663,-733.72,0.00022191,5]
[312043554,1705571449674,-500.0,0.00022191,2]
[312043555,1705571449685,-500.0,0.00022191,2]
[312043556,1705571449695,-500.0,0.00022191,2]
[312043557,1705571449706,-861.51,0.00022191,2]
[312043558,1705571449717,-500.0,0.00022191,2]
[312043559,1705571449727,-520.04824444,0.00022191,2]
[312043560,1705571449737,-681.72,0.00022191,2]
[312043561,1705571449749,-500.0,0.00022191,2]
[312043562,1705571449760,-500.0,0.00022191,2]
[312043563,1705571449769,-500.0,0.00022191,2]
[312043564,1705571449780,-1741.77,0.00022191,2]
[312043565,1705571449790,-500.0,0.00022191,2]
[312043566,1705571449802,-500.0,0.00022191,2]
[312043567,1705571449812,-500.0,0.00022191,2]
[312043568,1705571449822,-500.0,0.00022191,2]
[312043569,1705571449832,-500.0,0.00022191,2]
[312043570,1705571449843,-500.0,0.00022191,2]
[312043571,1705571449853,-500.0,0.00022191,2]
[312043572,1705571449864,-500.0,0.00022191,2]
[312043573,1705571449876,-1082.19,0.00022191,2]
[312043574,1705571449886,-408.4,0.00022192,2]
[312043575,1705571449897,-418.24,0.00022192,2]
[312043576,1705571449907,-3000.0,0.000222,2]
[312043577,1705571449917,-167.17,0.00022244,2]
[312043578,1705571449926,-536.3751114,0.00022281,2]
[312043579,1705571449936,-296.06,0.0002229,2]
[312043580,1705571449946,-25420.0,0.000223,2]
[312043581,1705571449956,-3157.0,0.000223,2]
[312043582,1705571449967,-532.8153,0.00022365,2]
[312043583,1705571449976,-536.3751114,0.00022436,2]
[312043584,1705571449986,-3138.29,0.00022445,2]
[312043585,1705571449997,-500.0,0.00022454,2]
[312043586,1705571450007,-1253.0,0.00022455,2]
[312043587,1705571450017,-1234.0,0.00022455,2]
[312043588,1705571450027,-1934.0,0.00022455,2]
[312043589,1705571450037,-476.788,0.00022455,2]
[312043590,1705571450048,-8092.0,0.00022455,2]
[312043591,1705571450058,-3067.673,0.00022455,2]
[312043592,1705571450072,-5575.0,0.00022455,2]
[312043593,1705571450082,-7349.0,0.00022455,2]
[312043594,1705571450092,-19308.6,0.00022455,2]
[312043595,1705571450102,-168.127,0.00022455,2]
[312043596,1705571450112,-150.0,0.00022455,2]
[312043597,1705571450123,-1029.0,0.00022455,2]
[312043598,1705571450134,-150.589,0.00022455,2]
[312043599,1705571450144,-200.0,0.00022455,2]
[312043600,1705571450154,-159.578,0.00022455,2]
[312043601,1705571450438,-5047.61921281,0.00022464,2]
[312043602,1705571450448,-150.0,0.00022464,2]
[312043603,1705571450457,-500.0,0.00022464,2]
[312043604,1705571450468,-500.0,0.00022464,2]
[312043605,1705571450477,-2328.69,0.00022464,2]
[312043606,1705571450487,-574.16,0.00022464,2]
[312043607,1705571450496,-554.4,0.00022464,2]
[312043608,1705571450505,-500.0,0.00022464,2]
[312043609,1705571450514,-500.0,0.00022464,2]
[312043610,1705571450523,-500.0,0.00022464,2]
[312043611,1705571450533,-1070.85,0.00022464,2]
[312043612,1705571450542,-750.56,0.00022464,2]
[312043613,1705571450551,-506.2,0.00022464,2]
[312043614,1705571450561,-500.0,0.00022464,5]
[312043615,1705571450570,-1019.96,0.00022464,2]
[312043616,1705571450579,-840.14,0.00022464,2]
[312043617,1705571450588,-500.0,0.00022464,2]
[312043618,1705571450598,-500.0,0.00022464,2]
[312043619,1705571450607,-500.0,0.00022464,2]
[312043620,1705571450616,-991.2,0.00022464,2]
[312043621,1705571450625,-500.0,0.00022464,2]
[312043622,1705571450635,-500.0,0.00022464,2]
[312043623,1705571450647,-500.0,0.00022464,2]
[312043624,1705571450658,-500.0,0.00022465,2]
[312043625,1705571450667,-355.71,0.00022465,2]
[312043626,1705571450678,-500.0,0.00022465,2]
[312043627,1705571450687,-177.86,0.00022465,2]
[312043628,1705571450697,-500.0,0.00022465,2]
[312043629,1705571450707,-500.0,0.00022465,2]
[312043630,1705571450718,-156.97,0.00022465,2]
[312043631,1705571450727,-500.0,0.00022465,2]
[312043632,1705571450736,-500.0,0.00022465,2]
[312043633,1705571450746,-500.0,0.00022465,2]
[312043634,1705571450756,-500.0,0.00022465,2]
[312043635,1705571450765,-378.45,0.00022465,2]
[312043636,1705571450775,-403.07017658,0.00022465,2]
[312043637,1705571450785,-285.62729271,0.00022465,2]
[312043638,1705571450799,-500.0,0.00022465,2]
[312043639,1705571450809,-500.0,0.00022465,2]
[312043640,1705571450820,-310.49,0.00022465,2]
[312043641,1705571450830,-624.96,0.00022465,2]
[312043642,1705571450841,-340.9831993,0.00022465,2]
[312043643,1705571450851,-358.9205367,0.00022465,2]
[312043644,1705571450860,-2820.79,0.00022465,2]
[312043645,1705571450870,-194.66,0.00022465,2]
[312043646,1705571450881,-500.0,0.00022465,2]
[312043647,1705571450891,-513.7,0.00022465,2]
[312043648,1705571450901,-641.44,0.00022465,2]
[312043649,1705571450910,-500.0,0.00022465,2]
[312043650,1705571450920,-500.0,0.00022465,2]
[312043651,1705571450929,-507.31,0.00022465,2]
[312043652,1705571450938,-500.0,0.00022465,2]
[312043653,1705571450948,-604.71079743,0.00022465,2]
[312043654,1705571450957,-500.0,0.00022465,2]
[312043655,1705571450966,-500.0,0.00022465,2]
[312043656,1705571450976,-606.87592251,0.00022465,2]
[312043657,1705571450985,-264.83743652,0.00022465,2]
[312043658,1705571450994,-500.0,0.00022465,2]
[312043659,1705571451004,-500.0,0.00022465,2]
[312043660,1705571451013,-500.0,0.00022465,2]
[312043661,1705571451023,-500.0,0.00022465,2]
[312043662,1705571451032,-624.21,0.00022465,2]
[312043663,1705571451041,-461.97765079,0.00022465,2]
[312043664,1705571451051,-523.75,0.00022465,2]
[312043665,1705571451060,-500.0,0.00022465,2]
[312043666,1705571451069,-500.0,0.00022465,2]
[312043667,1705571451079,-545.06,0.00022465,2]
[312043668,1705571451088,-528.85,0.00022465,2]
[312043669,1705571451097,-500.0,0.00022465,2]
[312043670,1705571451106,-500.0,0.00022465,2]
[312043671,1705571451115,-500.0,0.00022465,2]
[312043672,1705571451125,-214.76,0.00022465,2]
[312043673,1705571451134,-231.40347122,0.00022465,2]
[312043674,1705571451143,-500.0,0.00022465,2]
[312043675,1705571451153,-500.0,0.00022465,2]
[312043676,1705571451162,-500.0,0.00022465,2]
[312043677,1705571451171,-500.0,0.00022465,2]
[312043678,1705571451181,-337.52067244,0.00022465,2]
[312043679,1705571451190,-538.65,0.00022465,2]
[312043680,1705571451200,-339.23,0.00022465,2]
[312043681,1705571451209,-500.0,0.00022465,2]
[312043682,1705571451219,-500.0,0.00022465,2]
[312043683,1705571451228,-400.18,0.00022465,2]
[312043684,1705571451237,-500.0,0.00022465,2]
[312043685,1705571451246,-500.0,0.00022465,2]
[312043686,1705571451256,-500.0,0.00022465,2]
[312043687,1705571451265,-500.0,0.00022465,2]
[312043688,1705571451275,-881.75,0.00022465,2]
[312043689,1705571451284,-388.46850892,0.00022465,2]
[312043690,1705571451294,-500.0,0.00022465,2]
[312043691,1705571451303,-500.0,0.00022465,2]
[312043692,1705571451313,-500.0,0.00022465,2]
[312043693,1705571451325,-771.5,0.00022465,2]
[312043694,1705571451335,-500.0,0.00022465,2]
[312043695,1705571451344,-500.0,0.00022465,2]
[312043696,1705571451354,-500.0,0.00022465,2]
[312043697,1705571451363,-500.0,0.00022465,2]
[312043698,1705571451373,-500.0,0.00022465,2]
[312043699,1705571451382,-537.02,0.00022465,2]
[312043700,1705571451392,-500.0,0.00022465,2]
[312043701,1705571451401,-500.0,0.00022465,2]
[312043702,1705571451411,-884.24,0.00022465,2]
[312043703,1705571451420,-608.02,0.00022465,2]
[312043704,1705571451429,-429.02830415,0.00022465,2]
[312043705,1705571451439,-500.0,0.00022465,2]
[312043706,1705571451449,-500.0,0.00022465,2]
[312043707,1705571451459,-500.0,0.00022465,2]
[312043708,1705571451470,-500.0,0.00022465,2]
[312043709,1705571451479,-500.0,0.00022465,2]
[312043710,1705571451491,-403.05,0.00022465,2]
[312043711,1705571451500,-500.0,0.00022465,2]
[312043712,1705571451509,-508.41821335,0.00022465,2]
[312043713,1705571451518,-500.0,0.00022465,2]
[312043714,1705571451527,-500.0,0.00022465,2]
[312043715,1705571451537,-1534.44,0.00022465,2]
[312043716,1705571451546,-500.0,0.00022465,2]
[312043717,1705571451556,-500.0,0.00022465,2]
[312043718,1705571451565,-2751.5,0.00022465,2]
[312043719,1705571451575,-3034.53,0.00022465,2]
[312043720,1705571451585,-493.97654577,0.00022465,2]
[312043721,1705571451595,-500.0,0.00022465,2]
[312043722,1705571451605,-500.0,0.00022465,2]
[312043723,1705571451614,-514.43329017,0.00022465,2]
[312043724,1705571451624,-1940.27,0.00022465,2]
[312043725,1705571451633,-5373.36,0.00022465,2]
[312043726,1705571451643,-500.0,0.00022465,2]
[312043727,1705571451653,-605.81,0.00022465,2]
[312043728,1705571451662,-1409.77,0.00022465,2]
[312043729,1705571451672,-1230.82,0.00022465,2]
[312043730,1705571451681,-1855.69,0.00022465,2]
[312043731,1705571451691,-2206.15,0.00022465,2]
[312043732,1705571451701,-1153.6,0.00022465,2]
[312043733,1705571451710,-772.18,0.00022465,2]
[312043734,1705571451722,-1253.94,0.00022465,2]
[312043735,1705571451731,-500.0,0.00022465,2]
[312043736,1705571451740,-500.0,0.00022465,2]
[312043737,1705571451750,-690.04,0.00022465,2]
[312043738,1705571451759,-1352.59,0.00022465,2]
[312043739,1705571451769,-500.0,0.00022465,2]
[312043740,1705571451778,-500.0,0.00022465,2]
[312043741,1705571451788,-633.46,0.00022465,2]
[312043742,1705571451801,-554.74,0.00022465,2]
[312043743,1705571451810,-500.0,0.00022465,2]
[312043744,1705571451819,-1363.54,0.00022465,2]
[312043745,1705571451829,-500.0,0.00022465,2]
[312043746,1705571451839,-500.0,0.00022465,2]
[312043747,1705571451848,-300.0,0.00022465,2]
[312043748,1705571451858,-500.0,0.00022465,2]
[312043749,1705571451868,-500.0,0.00022465,2]
[312043750,1705571451879,-986.72,0.00022465,2]
[312043751,1705571451889,-500.0,0.00022465,2]
[312043752,1705571451899,-1632.95,0.00022465,2]
[312043753,1705571451908,-500.0,0.00022465,2]
[312043754,1705571451917,-603.11,0.00022465,2]
[312043755,1705571451927,-2889.47,0.00022465,2]
[312043756,1705571451937,-500.0,0.00022465,2]
[312043757,1705571451948,-500.0,0.00022465,2]
[312043758,1705571451957,-500.0,0.00022465,2]
[312043759,1705571451968,-2392.4,0.00022465,2]
[312043760,1705571451978,-11264.2,0.00022465,2]
[312043761,1705571451987,-500.0,0.00022465,2]
[312043762,1705571451997,-500.0,0.00022465,2]
[312043763,1705571452007,-500.0,0.00022465,2]
[312043764,1705571452018,-500.0,0.00022465,2]
[312043765,1705571452027,-867.84,0.00022465,2]
[312043766,1705571452036,-500.0,0.00022465,2]
[312043767,1705571452046,-1347.97,0.00022465,2]
[312043768,1705571452055,-500.0,0.00022465,2]
[312043769,1705571452066,-230.11,0.00022465,2]
[312043770,1705571452077,-3911.76,0.00022465,2]
[312043771,1705571452087,-1251.1,0.00022465,2]
[312043772,1705571452098,-500.0,0.00022465,2]
[312043773,1705571452107,-783.6,0.00022465,2]
[312043774,1705571452117,-500.0,0.00022465,2]
[312043775,1705571452127,-500.0,0.00022465,2]
[312043776,1705571452136,-617.3,0.00022465,2]
[312043777,1705571452146,-500.0,0.00022465,2]
[312043778,1705571452156,-1127.21,0.00022465,2]
[312043779,1705571452167,-998.2,0.00022465,2]
[312043780,1705571452177,-500.0,0.00022465,2]
[312043781,1705571452186,-500.0,0.00022465,2]
[312043782,1705571452197,-663.53,0.00022465,2]
[312043783,1705571452207,-1727.98,0.00022465,2]
[312043784,1705571452217,-614.04,0.00022465,2]
[312043785,1705571452227,-526.21256991,0.00022465,2]
[312043786,1705571452236,-606.99,0.00022465,2]
[312043787,1705571452246,-725.67,0.00022465,2]
[312043788,1705571452255,-500.0,0.00022465,2]
[312043789,1705571452264,-3736.39,0.00022465,2]
[312043790,1705571452274,-500.0,0.00022465,2]
[312043791,1705571452283,-500.0,0.00022465,2]
[312043792,1705571452291,-513.82,0.00022465,2]
[312043793,1705571452301,-629.14575559,0.00022465,2]
[312043794,1705571452310,-823.05,0.00022465,2]
[312043795,1705571452320,-600.47,0.00022465,2]
[312043796,1705571452329,-770.03,0.00022465,2]
[312043797,1705571452339,-500.0,0.00022465,2]
[312043798,1705571452348,-500.0,0.00022465,2]
[312043799,1705571452357,-517.84373026,0.00022465,2]
[312043800,1705571452365,-592.91,0.00022465,2]
[312043801,1705571452375,-500.0,0.00022465,2]
[312043802,1705571452384,-500.0,0.00022465,2]
[312043803,1705571452393,-530.94,0.00022465,2]
[312043804,1705571452402,-7068.0,0.00022465,2]
[312043805,1705571452411,-500.0,0.00022465,2]
[312043806,1705571452420,-500.0,0.00022465,2]
[312043807,1705571452429,-1459.78,0.00022465,2]
[312043808,1705571452438,-500.0,0.00022465,2]
[312043809,1705571452447,-1142.85,0.00022465,2]
[312043810,1705571452456,-1232.3,0.00022465,2]
[312043811,1705571452465,-1005.06,0.00022465,2]
[312043812,1705571452475,-500.0,0.00022465,2]
[312043813,1705571452485,-500.0,0.00022465,2]
[312043814,1705571452494,-1537.39,0.00022465,2]
[312043815,1705571452503,-500.0,0.00022465,2]
[312043816,1705571452513,-500.0,0.00022465,2]
[312043817,1705571452522,-672.01,0.00022465,2]
[312043818,1705571452531,-232.0,0.00022465,2]
[312043819,1705571452540,-1946.39,0.00022465,2]
[312043820,1705571452549,-617.09,0.00022465,2]
[312043821,1705571452558,-607.99,0.00022465,2]
[312043822,1705571452567,-2424.07,0.00022465,2]
[312043823,1705571452577,-340.5,0.00022465,2]
[312043824,1705571452586,-683.24,0.00022465,2]
[312043825,1705571452595,-535.43,0.00022465,2]
[312043826,1705571452605,-755.21,0.00022465,2]
[312043827,1705571452614,-967.22,0.00022465,2]
[312043828,1705571452623,-691.03,0.00022465,2]
[312043829,1705571452633,-510.55,0.00022465,2]
[312043830,1705571452642,-895.3,0.00022465,2]
[312043831,1705571452651,-511.27,0.00022465,2]
[312043832,1705571452661,-500.0,0.00022465,2]
[312043833,1705571452671,-1073.98,0.00022465,2]
[312043834,1705571452680,-500.0,0.00022465,2]
[312043835,1705571452690,-500.0,0.00022465,2]
[312043836,1705571452699,-638.55,0.00022465,2]
[312043837,1705571452709,-500.0,0.00022465,2]
[312043838,1705571452786,-875.18,0.00022465,2]
[312043839,1705571452801,-500.0,0.00022465,2]
[312043840,1705571452810,-2399.21,0.00022465,2]
[312043841,1705571452820,-1552.36,0.00022465,2]
[312043842,1705571452830,-500.0,0.00022465,2]
[312043843,1705571452841,-789.53,0.00022465,2]
[312043844,1705571452850,-500.0,0.00022465,2]
[312043845,1705571452859,-500.0,0.00022465,2]
[312043846,1705571452868,-500.0,0.00022465,2]
[312043847,1705571452880,-500.0,0.00022465,2]
[312043848,1705571452889,-733.72,0.00022465,5]
[312043849,1705571452899,-500.0,0.00022465,2]
[312043850,1705571452908,-385.40648668,0.00022465,2]
[312043851,1705571452917,-861.51,0.00022465,2]
[312043852,1705571452927,-500.0,0.00022465,2]
[312043853,1705571452936,-681.72,0.00022465,2]
[312043854,1705571452946,-500.0,0.00022465,2]
[312043855,1705571452955,-500.0,0.00022465,2]
[312043856,1705571452965,-500.0,0.00022465,2]
[312043857,1705571452976,-1741.77,0.00022465,2]
[312043858,1705571452987,-500.0,0.00022465,2]
[312043859,1705571452998,-500.0,0.00022465,2]
[312043860,1705571453008,-195.6,0.00022465,2]
[312043861,1705571453018,-500.0,0.00022465,2]
[312043862,1705571453027,-500.0,0.00022465,2]
[312043863,1705571453036,-500.0,0.00022465,2]
[312043864,1705571453048,-1082.19,0.00022465,2]
[312043865,1705571453057,-167.17,0.00022467,2]
[312043866,1705571453066,-12240.31559135,0.000225,2]
[312043867,1705571453075,-12298.83057596,0.000225,2]
[312043868,1705571453084,-882.31,0.00022503,2]
[312043869,1705571453093,-1687.99,0.00022505,2]
[312043870,1705571453103,-536.3751114,0.00022591,2]
[312043871,1705571453113,-167.17,0.00022689,2]
[312043872,1705571453122,-500.0,0.00022738,2]
[312043873,1705571453130,-500.0,0.00022738,2]
[312043874,1705571453139,-2328.69,0.00022738,2]
[312043875,1705571453148,-574.16,0.00022738,2]
[312043876,1705571453157,-554.4,0.00022738,2]
[312043877,1705571453166,-500.0,0.00022738,2]